Cogmind - Beta 13 @@@ ROGUE MODE // 2024.05.06 @ 00:04:26 Player: Compound1080 Result: Self-destructed Performance ------------- Evolutions (1) 500 Regions Visited (3) 600 Robots Destroyed (18) 90 Value Destroyed (398) 398 Prototype IDs (0) 0 Alien Tech Used (0) 0 Bonus (0) 0 TOTAL SCORE: 1588 Bonus ------- None Cogmind --------- Core Integrity 79/400 Matter 296/300 Energy 100/100 System Corruption 11% Temperature Cool (0) Movement Core (200) Ox3 Location -9/Storage Parts ------- > --- POWER (1) -------- (None) > --- PROPULSION (2) --- (None) > --- UTILITY (4) ------ Medium Storage Unit Terrain Scan Processor > --- WEAPON (2) ------- (None) > --- INVENTORY (10) --- Aluminum Leg Aluminum Leg Hover Unit Flight Unit Flight Unit Flight Unit Flight Unit Flight Unit Weight Redist. System Light Armor Plating Peak State ------------ > --- POWER ------------ Ion Engine > --- PROPULSION ------- Aluminum Leg Aluminum Leg > --- UTILITY ---------- Medium Storage Unit Terrain Scan Processor > --- WEAPON ----------- Small Laser Light Assault Rifle > --- INVENTORY -------- Aluminum Leg Aluminum Leg Hover Unit Flight Unit Flight Unit Flight Unit Flight Unit Small Storage Unit Weight Redist. System [Rating: 9] Favorites ----------- Power Ion Engine Engine Ion Engine Propulsion Aluminum Leg Leg Aluminum Leg Utility Medium Storage Unit Device Sensor Array Storage Medium Storage Unit Processor Terrain Scan Processor Weapon Light Assault Rifle Energy Gun Small Laser Ballistic Gun Light Assault Rifle Build | -11 -10 -9 -9 ------- Run | Yrd Mat Mat Sto Slots Evolved 2 | . . 2 . Power . | . . . . Propulsion . | . . . . Utility 2 | . . 2 . Weapon . | . . . . Parts Attached 16 | 6 2 8 . Power 3 | 1 . 2 . Engine 3 | 1 . 2 . Core . | . . . . Reactor . | . . . . Propulsion 5 | 2 . 3 . Treads . | . . . . Leg 5 | 2 . 3 . Wheel . | . . . . Hover . | . . . . Flight . | . . . . Utility 4 | 1 2 1 . Device 1 | . 1 . . Storage 2 | 1 1 . . Processor 1 | . . 1 . Hackware . | . . . . Protection . | . . . . Artifact . | . . . . Weapon 4 | 2 . 2 . Energy Gun 1 | . . 1 . Energy Cannon . | . . . . Ballistic Gun 3 | 2 . 1 . Ballistic Cannon . | . . . . Launcher . | . . . . Special Weapon . | . . . . Impact Weapon . | . . . . Slashing Weapon . | . . . . Piercing Weapon . | . . . . Special Melee Weapon . | . . . . Unidentified Prototypes . | . . . . Parts Lost 10 | . . 8 2 Power 2 | . . 2 . Propulsion 3 | . . 1 2 Utility 1 | . . 1 . Weapon 4 | . . 4 . Highest Loss Streak 5 | . . 5 2 To Critical Strikes . | . . . . Average Slot Usage (%) 78 | . 95 69 40 Engine 10 | . 14 8 . Leg 23 | . 28 21 18 Device 6 | . 10 3 . Storage 12 | . 14 11 11 Processor 2 | . . 4 11 Energy Gun 2 | . . 5 . Ballistic Gun 19 | . 28 14 . Naked Turns . | . . . . Heaviest Build 18 | 12 18 18 10 Greatest Support 20 | 20 20 20 20 Greatest Overweight (x) 3 | 3 . 1 3 Average Overweight (x) . | . . . . Largest Inventory Capacity 10 | 8 10 10 10 Average Capacity 9 | 7 8 10 10 Most Carried 10 | 4 8 10 10 Average Carried 7 | 2 6 9 10 Final Capacity 10 | 8 10 10 10 Final Carried 10 | 4 8 10 10 Class Distribution -------------------- 86% | Mutant 13% | Scavenger-Mutant Dominant Class ---------------- Mutant | -10/Materials Mutant | -9/Materials Mutant | -9/Storage Resources | -11 -10 -9 -9 ----------- Run | Yrd Mat Mat Sto Matter Collected 438 | 204 45 189 . Remotely . | . . . . Salvage Created 508 | . 83 425 . Parts 39 | . 9 30 . Haulers Intercepted . | . . . . Recyclers Shooed . | . . . . Parts Field Recycled . | . . . . Retrieved Matter . | . . . . Parts Self-Destructed . | . . . . Prevented . | . . . . Kills | -11 -10 -9 -9 ------- Run | Yrd Mat Mat Sto Combat Hostiles Destroyed 18 | . 4 14 . Guns 18 | . 4 14 . Classes Destroyed 4 | . 2 2 . Swarmer 10 | . 3 7 . Grunt 6 | . 1 5 . Brawler 1 | . . 1 . Sentry 1 | . . 1 . Best Kill Streak 6 | . 3 6 . Combat Bots Only 6 | . 3 6 . Max Kills in Single Turn 1 | . 1 1 . Gunslinging . | . . . . Exploded . | . . . . Melee . | . . . . Uniques/NPCs Destroyed . | . . . . Combat | -11 -10 -9 -9 -------- Run | Yrd Mat Mat Sto Hostile Shots Fired 178 | . 16 120 42 Missed 55 | . 5 31 19 Damage Taken 1281 | . 104 959 218 Core 350 | . 29 261 60 Absorbed by Shields . | . . . . Core Remaining (%) 94 | 100 88 . . Volleys Fired 67 | . 10 57 . Largest 2 | . 2 2 . Hottest 60 | . 40 60 . Shots Fired 122 | . 20 102 . Gun 122 | . 20 102 . Cannon . | . . . . Launcher . | . . . . Special . | . . . . Kinetic 102 | . 20 82 . Thermal 20 | . . 20 . Explosive . | . . . . Electromagnetic . | . . . . Robot Hit Streak 16 | . 7 16 . Robot Miss Streak 4 | . 3 4 . Penetration Max . | . . . . Secondary Targets 3 | . . 3 . Max Gunslinging Chain 1 | . . 1 . Shots Hit Robots 79 | . 14 65 . Core Hits 37 | . 6 31 . Critical Kills . | . . . . Critical Parts Destroyed 1 | . . 1 . Critical Strikes 1 | . . 1 . Destroy 1 | . . 1 . Melee Attacks . | . . . . Impact . | . . . . Slashing . | . . . . Piercing . | . . . . Sneak Attacks . | . . . . Combat Hostiles . | . . . . Follow-up Attacks . | . . . . Damage Inflicted 714 | . 132 582 . Guns 705 | . 130 575 . Cannons . | . . . . Explosions . | . . . . Melee . | . . . . Ramming 9 | . 2 7 . Kinetic 591 | . 130 461 . Thermal 114 | . . 114 . Explosive . | . . . . Electromagnetic . | . . . . Impact . | . . . . Slashing . | . . . . Piercing . | . . . . Highest Corruption 11 | . 1 11 11 Average Corruption 7 | . 1 9 11 Corruption Purged . | . . . . Corruption Blocked . | . . . . Effects 12 | . . 9 3 Message Errors 4 | . . 3 1 Matter Fused 3 | . . 1 2 Heat Flow Errors 2 | . . 2 . Parts Fused 1 | . . 1 . Data Loss (major) 1 | . . 1 . Alerts 1 | . . 1 . Overload Shots . | . . . . Overflow Damage . | . . . . Projectiles . | . . . . Explosions . | . . . . Melee . | . . . . Knockbacks . | . . . . Impact . | . . . . Kinetic . | . . . . Secondary . | . . . . Self-Inflicted Damage . | . . . . Shots . | . . . . Rammed . | . . . . Targets Rammed 3 | . 1 2 . Kicked 3 | . 1 2 . Crushed . | . . . . Highest Temperature 252 | . 6 252 . Average Temperature 57 | . 6 58 . Received Heat Transfer 297 | . 24 246 27 Siege Activations . | . . . . Robots Corrupted . | . . . . Combat Hostiles . | . . . . Parts Fried . | . . . . Impact Corruptions . | . . . . Robots Melted . | . . . . Combat Hostiles . | . . . . Parts Melted . | . . . . Heat Transferred 250 | . . 250 . Parts Sabotaged . | . . . . Parts Stolen . | . . . . Parts Stripped . | . . . . Power Chain Reactions . | . . . . Alert | -11 -10 -9 -9 ------- Run | Yrd Mat Mat Sto Peak Influence 316 | . 99 316 81 Initial 61 | . . 41 61 Average 106 | . 58 169 67 Maximum Alert Level 1 | . . 1 . Low Security (%) 84 | 100 100 66 100 Level 1 15 | . . 33 . Level 2 . | . . . . Level 3 . | . . . . Level 4 . | . . . . Level 5 . | . . . . High Security . | . . . . Max Security . | . . . . Squads Dispatched 1 | . 1 . . Investigation . | . . . . Extermination . | . . . . Reinforcement 1 | . 1 . . Assault . | . . . . Garrison . | . . . . Intercept . | . . . . Searches Triggered . | . . . . Construction Impeded . | . . . . Haulers Reinforced . | . . . . Active Scanning Responses . | . . . . Cargo Convoy Interrupts . | . . . . Stealth | -11 -10 -9 -9 --------- Run | Yrd Mat Mat Sto Distress Signals 3 | . . 2 1 Communications Jammed . | . . . . Distress Signals . | . . . . Times Spotted 30 | . 6 19 5 Peak Tracking Total 9 | . 4 5 9 Tactical Retreats 3 | . . 2 1 Traps | -11 -10 -9 -9 ------- Run | Yrd Mat Mat Sto Traps Triggered 2 | . 1 1 . Indirectly . | . . . . Trap Hack Attempts . | . . . . Triggered . | . . . . Disarmed . | . . . . Reprogrammed . | . . . . Reused . | . . . . Traps Extracted . | . . . . Installed . | . . . . Triggered . | . . . . Machines | -11 -10 -9 -9 ---------- Run | Yrd Mat Mat Sto Machines Disabled . | . . . . Max in Single Turn . | . . . . Machines Repaired . | . . . . Machines Dismantled . | . . . . Machines Sabotaged . | . . . . Overloaded Fab Kills . | . . . . Hacking | -11 -10 -9 -9 --------- Run | Yrd Mat Mat Sto Machines Accessed 4 | . 3 1 . Terminals 4 | . 3 1 . Fabricators . | . . . . Repair Stations . | . . . . Recycling Units . | . . . . Scanalyzers . | . . . . Garrison Access . | . . . . Total Hacks 6 | . 5 1 . Successful 4 | . 3 1 . Failed 2 | . 2 . . Catastrophic . | . . . . Database Lockouts . | . . . . Manual 3 | . 2 1 . Terminals 6 | . 5 1 . Fabricators . | . . . . Repair Stations . | . . . . Recycling Units . | . . . . Scanalyzers . | . . . . Garrison Access . | . . . . Terminal Hacks 4 | . 3 1 . Level Access Points 1 | . 1 . . Recall Investigation 1 | . 1 . . Zone Layout 2 | . 1 1 . Fabricator Hacks . | . . . . Repair Station Hacks . | . . . . Recycling Unit Hacks . | . . . . Scanalyzer . | . . . . Garrison Access Hacks . | . . . . Unauthorized Hacks . | . . . . Terminals . | . . . . Fabricators . | . . . . Repair Stations . | . . . . Recycling Units . | . . . . Scanalyzers . | . . . . Garrison Access . | . . . . Data Cores Recovered . | . . . . Used . | . . . . Hacking Detections 2 | . 1 1 . Full Trace Events . | . . . . Feedback Events . | . . . . Feedback Blocked . | . . . . Robot Schematics Acquired . | . . . . Robots Built . | . . . . Authchips . | . . . . Time . | . . . . Total Robot Build Rating . | . . . . Part Schematics Acquired . | . . . . Parts Built . | . . . . Authchips . | . . . . Time . | . . . . Total Part Build Rating . | . . . . Parts Repaired . | . . . . Time . | . . . . Parts Recycled . | . . . . Recycled Matter . | . . . . Retrieved Matter . | . . . . Retrieved Components . | . . . . Parts Scanalyzed . | . . . . Part Schematics Acquired . | . . . . Parts Damaged . | . . . . Bothacking | -11 -10 -9 -9 ------------ Run | Yrd Mat Mat Sto Used RIF Installer . | . . . . Robots Hacked . | . . . . Non-combat . | . . . . Combat . | . . . . Robot Hacks Applied . | . . . . Relay Couplers Released . | . . . . Fabnet Peak Effective % . | . . . . Robots Rewired . | . . . . Allies Hacked . | . . . . Hacks Repelled . | . . . . Allies | -11 -10 -9 -9 -------- Run | Yrd Mat Mat Sto Total Allies . | . . . . Largest Group . | . . . . Highest-Rated Group . | . . . . Highest-Rated Ally . | . . . . Total Orders . | . . . . Ally Attacks . | . . . . Total Damage . | . . . . Kills . | . . . . Allies Corrupted . | . . . . Allies Melted . | . . . . Intel | -11 -10 -9 -9 ------- Run | Yrd Mat Mat Sto Robot Analysis Total . | . . . . Derelict Logs Recovered . | . . . . Drone Launches . | . . . . Drone Recoveries . | . . . . Exploration | -11 -10 -9 -9 ------------- Run | Yrd Mat Mat Sto Turns Passed 1001 | 72 399 462 68 Spaces Moved 533 | 45 241 191 56 Core 9 | 8 . . 1 Treads . | . . . . Legs 524 | 37 241 191 55 Wheels . | . . . . Hover . | . . . . Flight . | . . . . Fastest Speed 50 | 50 120 120 120 Average Speed 121 | 125 120 121 121 Slowest Speed 200 | 200 120 190 200 Overloaded Moves . | . . . . Propulsion Burnouts . | . . . . Robots Hopped . | . . . . Cave-ins Triggered . | . . . . Exploration Rate (%) 18 | 5 38 17 15 Regions Visited 3 Branch Regions 1 Pre-discovered Areas . | . . . . Known Exits Taken 1 | . 1 . . Unknown Exits Taken 2 | 1 . 1 . Scrap Searched . | . . . . Spaces Dug . | . . . . Terrain Destroyed . | . . . . Melee . | . . . . Projectile . | . . . . AOE . | . . . . Terrain Rammed . | . . . . Walls Destroyed . | . . . . Machines Disabled . | . . . . Actions | -11 -10 -9 -9 --------- Run | Yrd Mat Mat Sto Total 785 | 60 334 335 56 Wait 140 | . 76 64 . Move 530 | 44 240 190 56 Hop . | . . . . Pick Up 25 | 10 5 10 . Fast Attach 1 | . . 1 . Attach 11 | 6 1 4 . Detach . | . . . . Swap 4 | . 1 3 . Drop 4 | . . 4 . Fire 67 | . 10 57 . Melee . | . . . . Ram . | . . . . Kick 3 | . 1 2 . Crush . | . . . . Escape Stasis . | . . . . Rewire . | . . . . Trap . | . . . . Miscellaneous . | . . . . Route ------- -11/Scrapyard -10/Materials (discovered 3 exits: *Mat x3) -9/Materials (discovered 2 exits: [*Mat] / [*Sto]) -9/Storage History --------- Turn | Location | Event 9 | -11/Scrapyard | Discovered new exit (range 16) 73 | -11/Scrapyard | Entered Materials 303 | -10/Materials | Build established: Mutant 366 | -10/Materials | Discovered new exit (range 8) 466 | -10/Materials | Identified exit to Materials 472 | -10/Materials | Entered another Materials area 472 | -9/Materials | Evolved 2 slots: Utility x2 683 | -9/Materials | Lost 5 parts (1p1n1u2w) 810 | -9/Materials | Discovered new exit (range 16) 841 | -9/Materials | System corruption reached 10% 908 | -9/Materials | Core integrity fell below 50% 922 | -9/Materials | Discovered new exit (range 7) 934 | -9/Materials | Entered Storage 950 | -9/Storage | Lost 3 parts (1p2w) 1002 | -9/Storage | Self-destructed Last Messages --------------- 00894_ S-10 Pest destroyed. 00898_ Sml. Laser destroyed. 00905_ Y-45 Defender destroyed. 00908_ Acquired 5 matter. 00911_ System corrupted: Heat flow error (+275). 00911_ Acquired 1 matter. 00915_ Lgt. Assault Rifle destroyed. 00919_ Ion Engine destroyed. 00921_ K-01 Serf collects debris. 00922_ EXIT=FOUND 00925_ Kicked K-01 Serf. 00928_ K-01 Serf cleans the Terminal. LOCATION=UNKNOWN GOAL=ESCAPE 00949_ System corrupted: Matter fused (-5). 00967_ W-16 Scout sends out distress signal. 00971_ IBM NLZ